Cogmind - Beta 14 @@@ ROGUE MODE // 2024.11.13 @ 21:37:39 Player: Nicky Result: Destroyed self with Mini Grenade Launcher Performance ------------- Evolutions (1) 500 Regions Visited (2) 400 Robots Destroyed (42) 210 Value Destroyed (978) 978 Prototype IDs (2) 40 Alien Tech Used (0) 0 Bonus (58) 58 TOTAL SCORE: 2186 Bonus ------- High Alert Combat Kills 58 Cogmind --------- Core Integrity 0/400 Matter 185/300 Energy 100/100 System Corruption 0% Temperature Cool (0) Movement Treading (240) Ox1 Location -9/Materials Parts ------- > --- POWER (1) -------- (None) > --- PROPULSION (3) --- Light Treads > --- UTILITY (3) ------ Large Storage Unit Targeting Computer > --- WEAPON (2) ------- Mini Grenade Launcher > --- INVENTORY (15) --- Improved Ion Engine Improved Ion Engine Light Treads Improved Heat Sink Machine Analyzer Signal Interpreter Signal Interpreter Seismic Detector Hardened Light Armor Plating Hardened Light Armor Plating Medium Laser Medium Laser Grenade Launcher Peak State ------------ > --- POWER ------------ Ion Engine > --- PROPULSION ------- Wheel Wheel Compact Wheel > --- UTILITY ---------- Improved Heat Sink Large Storage Unit Targeting Computer > --- WEAPON ----------- Medium Laser Medium Laser > --- INVENTORY -------- Improved Ion Engine Improved Ion Engine Light Treads Light Treads Machine Analyzer Signal Interpreter Signal Interpreter Signal Interpreter Seismic Detector Light Armor Plating Hardened Light Armor Plating Medium Laser Medium Laser Grenade Launcher Mini Grenade Launcher [Rating: 13] Favorites ----------- Power Ion Engine Engine Ion Engine Propulsion Compact Wheel Treads Light Treads Wheel Compact Wheel Utility Targeting Computer Device Sensor Array Storage Large Storage Unit Processor Targeting Computer Protection Hardened Light Armor Plating Weapon Assault Rifle Energy Gun Medium Laser Ballistic Gun Assault Rifle Launcher Mini Grenade Launcher Build | -11 -10 -9 ------- Run | Yrd Mat Mat Slots Evolved 2 | . . 2 Power . | . . . Propulsion 1 | . . 1 Utility 1 | . . 1 Weapon . | . . . Parts Attached 34 | 4 11 19 Power 4 | 1 1 2 Engine 4 | 1 1 2 Core . | . . . Reactor . | . . . Propulsion 12 | 2 3 7 Treads 1 | . . 1 Leg . | . . . Wheel 11 | 2 3 6 Hover . | . . . Flight . | . . . Utility 7 | 1 2 4 Device 3 | . . 3 Storage 2 | 1 1 . Processor 1 | . 1 . Hackware . | . . . Protection 1 | . . 1 Artifact . | . . . Weapon 11 | . 5 6 Energy Gun 2 | . . 2 Energy Cannon . | . . . Ballistic Gun 8 | . 5 3 Ballistic Cannon . | . . . Launcher 1 | . . 1 Special Weapon . | . . . Impact Weapon . | . . . Slashing Weapon . | . . . Piercing Weapon . | . . . Special Melee Weapon . | . . . Unidentified Prototypes . | . . . Parts Lost 18 | . 3 15 Power 2 | . 1 1 Propulsion 8 | . 1 7 Utility 2 | . . 2 Weapon 6 | . 1 5 Highest Loss Streak 7 | . 3 7 To Critical Strikes . | . . . Average Slot Usage (%) 92 | . 95 90 Engine 11 | . 13 10 Wheel 26 | . 27 26 Device 5 | . . 8 Storage 12 | . 14 11 Processor 11 | . 11 11 Energy Gun 6 | . . 10 Ballistic Gun 17 | . 28 11 Peak Build Rating 13 | 4 8 13 Average Rating 8 | 3 7 10 On Entrance 4 | . 4 8 Naked Turns . | . . . Heaviest Build 33 | 10 29 33 Greatest Support 48 | 26 32 48 Greatest Overweight (x) 1 | . . 1 Average Overweight (x) . | . . . Largest Inventory Capacity 15 | 8 15 15 Average Capacity 13 | 7 12 15 Most Carried 15 | 6 15 15 Average Carried 11 | 3 8 13 Final Capacity 15 | 8 15 15 Final Carried 15 | 6 15 13 Class Distribution -------------------- 90% | Mutant 9% | Scavenger-Mutant Dominant Class ---------------- Mutant | -10/Materials Mutant | -9/Materials Resources | -11 -10 -9 ----------- Run | Yrd Mat Mat Matter Collected 882 | 240 250 392 Remotely . | . . . Salvage Created 1432 | . 362 1070 Parts 71 | . 23 48 Haulers Intercepted 1 | . 1 . Recyclers Shooed 5 | . . 5 Parts Field Recycled . | . . . Retrieved Matter . | . . . Parts Self-Destructed . | . . . Prevented . | . . . Kills | -11 -10 -9 ------- Run | Yrd Mat Mat Combat Hostiles Destroyed 31 | . 7 24 Guns 23 | . 7 16 AOE 7 | . . 7 Classes Destroyed 10 | . 3 7 Worker 1 | . . 1 Tunneler 1 | . . 1 Hauler 1 | . 1 . Recycler 5 | . . 5 Mechanic 2 | . . 2 Watcher 1 | . 1 . Swarmer 10 | . . 10 Grunt 17 | . 7 10 Duelist 1 | . . 1 Sentry 3 | . . 3 Best Kill Streak 9 | . 3 9 Combat Bots Only 7 | . 3 7 Max Kills in Single Turn 2 | . 1 2 Gunslinging . | . . . Exploded 1 | . . 1 Melee . | . . . Uniques/NPCs Destroyed . | . . . Combat | -11 -10 -9 -------- Run | Yrd Mat Mat Hostile Shots Fired 226 | . 37 189 Missed 58 | . 8 50 Damage Taken 2150 | . 354 1796 Core 419 | . 17 402 Absorbed by Shields . | . . . Core Remaining (%) 96 | 100 93 . Volleys Fired 118 | . 25 93 Largest 2 | . 2 2 Hottest 100 | . 40 100 Shots Fired 223 | . 50 173 Gun 212 | . 50 162 Cannon . | . . . Launcher 11 | . . 11 Special . | . . . Kinetic 136 | . 50 86 Thermal 76 | . . 76 Explosive 11 | . . 11 Electromagnetic . | . . . Robot Hit Streak 17 | . 8 17 Robot Miss Streak 4 | . 3 4 Penetration Max . | . . . Secondary Targets 3 | . 1 2 Max Gunslinging Chain 1 | . 1 1 Shots Hit Robots 155 | . 33 122 Core Hits 72 | . 18 54 Critical Kills . | . . . Critical Parts Destroyed 1 | . . 1 Critical Strikes 9 | . . 9 Burn 8 | . . 8 Destroy 1 | . . 1 Melee Attacks . | . . . Impact . | . . . Slashing . | . . . Piercing . | . . . Sneak Attacks . | . . . Combat Hostiles . | . . . Follow-up Attacks . | . . . Damage Inflicted 2614 | . 416 2198 Guns 1938 | . 416 1522 Cannons . | . . . Explosions 676 | . . 676 Melee . | . . . Ramming . | . . . Kinetic 1187 | . 416 771 Thermal 751 | . . 751 Explosive 676 | . . 676 Electromagnetic . | . . . Impact . | . . . Slashing . | . . . Piercing . | . . . Highest Corruption . | . . . Average Corruption . | . . . Corruption Purged . | . . . Corruption Blocked . | . . . Overload Shots . | . . . Overflow Damage 24 | . . 24 Projectiles . | . . . Explosions 24 | . . 24 Melee . | . . . Knockbacks . | . . . Impact . | . . . Kinetic . | . . . Secondary . | . . . Self-Inflicted Damage 134 | . . 134 Shots 5 | . . 5 Rammed . | . . . Targets Rammed . | . . . Kicked . | . . . Crushed . | . . . Highest Temperature 244 | . 8 244 Average Temperature 63 | . 3 68 Received Heat Transfer 654 | . 198 456 Siege Activations . | . . . Robots Corrupted . | . . . Combat Hostiles . | . . . Parts Fried . | . . . Impact Corruptions . | . . . Robots Melted 1 | . . 1 Combat Hostiles 1 | . . 1 Parts Melted 6 | . . 6 Heat Transferred 2812 | . . 2812 Parts Sabotaged . | . . . Parts Stolen . | . . . Parts Stripped . | . . . Power Chain Reactions . | . . . Alert | -11 -10 -9 ------- Run | Yrd Mat Mat Peak Influence 548 | . 274 548 Initial 31 | . . 31 Average 209 | . 123 277 Maximum Alert Level 2 | . 1 2 Low Security (%) 40 | 100 68 19 Level 1 52 | . 31 69 Level 2 6 | . . 11 Level 3 . | . . . Level 4 . | . . . Level 5 . | . . . High Security . | . . . Max Security . | . . . Squads Dispatched 4 | . 2 2 Investigation 1 | . . 1 Extermination . | . . . Reinforcement 3 | . 2 1 Assault . | . . . Garrison . | . . . Intercept . | . . . Searches Triggered . | . . . Construction Impeded . | . . . Haulers Reinforced . | . . . Active Scanning Responses . | . . . Cargo Convoy Interrupts . | . . . Stealth | -11 -10 -9 --------- Run | Yrd Mat Mat Distress Signals 2 | . 1 1 Communications Jammed . | . . . Distress Signals . | . . . Times Spotted 54 | . 14 40 Peak Tracking Total 7 | . 5 7 Tactical Retreats 1 | . . 1 Traps | -11 -10 -9 ------- Run | Yrd Mat Mat Traps Triggered . | . . . Indirectly . | . . . Trap Hack Attempts . | . . . Triggered . | . . . Disarmed . | . . . Reprogrammed . | . . . Reused . | . . . Traps Extracted . | . . . Installed . | . . . Triggered . | . . . Machines | -11 -10 -9 ---------- Run | Yrd Mat Mat Machines Disabled 1 | . . 1 Max in Single Turn 1 | . . 1 Machines Repaired . | . . . Machines Dismantled . | . . . Machines Sabotaged . | . . . Overloaded Fab Kills . | . . . Hacking | -11 -10 -9 --------- Run | Yrd Mat Mat Machines Accessed 12 | . 5 7 Terminals 12 | . 5 7 Fabricators . | . . . Repair Stations . | . . . Recycling Units . | . . . Scanalyzers . | . . . Garrison Access . | . . . Total Hacks 37 | . 13 24 Successful 22 | . 10 12 Failed 15 | . 3 12 Catastrophic 4 | . . 4 Database Lockouts . | . . . Manual 26 | . 11 15 Terminals 37 | . 13 24 Fabricators . | . . . Repair Stations . | . . . Recycling Units . | . . . Scanalyzers . | . . . Garrison Access . | . . . Terminal Hacks 12 | . 5 7 Prototype ID Bank 1 | . . 1 Terminal Index 2 | . 1 1 Alert Level 1 | . . 1 Locate Traps 2 | . 2 . Hauler Manifests 2 | . 1 1 Zone Layout 2 | . 1 1 Patrol Navigation 1 | . . 1 Security Stations 1 | . . 1 Fabricator Hacks . | . . . Repair Station Hacks . | . . . Recycling Unit Hacks . | . . . Scanalyzer . | . . . Garrison Access Hacks . | . . . Unauthorized Hacks 10 | . 5 5 Terminals 10 | . 5 5 Botnet 10 | . 5 5 Fabricators . | . . . Repair Stations . | . . . Recycling Units . | . . . Scanalyzers . | . . . Garrison Access . | . . . Data Cores Recovered . | . . . Used . | . . . Hacking Detections 11 | . 4 7 Full Trace Events 1 | . . 1 Feedback Events . | . . . Feedback Blocked . | . . . Robot Schematics Acquired . | . . . Robots Built . | . . . Authchips . | . . . Time . | . . . Total Robot Build Rating . | . . . Part Schematics Acquired . | . . . Parts Built . | . . . Authchips . | . . . Time . | . . . Total Part Build Rating . | . . . Parts Repaired . | . . . Time . | . . . Parts Recycled . | . . . Recycled Matter . | . . . Retrieved Matter . | . . . Retrieved Components . | . . . Parts Scanalyzed . | . . . Part Schematics Acquired . | . . . Parts Damaged . | . . . Bothacking | -11 -10 -9 ------------ Run | Yrd Mat Mat Used RIF Installer . | . . . Robots Hacked . | . . . Non-combat . | . . . Combat . | . . . Robot Hacks Applied . | . . . Relay Couplers Released . | . . . Fabnet Peak Effective % . | . . . Robots Rewired . | . . . Allies Hacked . | . . . Hacks Repelled . | . . . Allies | -11 -10 -9 -------- Run | Yrd Mat Mat Total Allies . | . . . Largest Group . | . . . Highest-Rated Group . | . . . Highest-Rated Ally . | . . . Total Orders . | . . . Ally Attacks . | . . . Total Damage . | . . . Kills . | . . . Allies Corrupted . | . . . Allies Melted . | . . . Intel | -11 -10 -9 ------- Run | Yrd Mat Mat Robot Analysis Total . | . . . Derelict Logs Recovered . | . . . Drone Launches . | . . . Drone Recoveries . | . . . Exploration | -11 -10 -9 ------------- Run | Yrd Mat Mat Turns Passed 1178 | 53 424 701 Spaces Moved 779 | 46 324 409 Core 1 | 1 . . Treads 1 | . . 1 Legs . | . . . Wheels 777 | 45 324 408 Hover . | . . . Flight . | . . . Fastest Speed 50 | 50 90 86 Average Speed 95 | 89 95 95 Slowest Speed 240 | 100 100 240 Overloaded Moves . | . . . Propulsion Burnouts . | . . . Robots Hopped . | . . . Cave-ins Triggered . | . . . Exploration Rate (%) 33 | 4 58 39 Regions Visited 2 Branch Regions . Pre-discovered Areas . | . . . Known Exits Taken . | . . . Unknown Exits Taken 2 | 1 1 . Scrap Searched . | . . . Spaces Dug . | . . . Terrain Destroyed 65 | . . 65 Melee . | . . . Projectile . | . . . AOE 65 | . . 65 Terrain Rammed . | . . . Walls Destroyed . | . . . Machines Disabled . | . . . Actions | -11 -10 -9 --------- Run | Yrd Mat Mat Total 991 | 55 388 548 Wait 24 | . 13 11 Move 777 | 45 323 409 Hop . | . . . Pick Up 29 | 6 13 10 Fast Attach 9 | 4 2 3 Attach 13 | . 4 9 Detach . | . . . Swap 12 | . 5 7 Drop 9 | . 3 6 Fire 118 | . 25 93 Melee . | . . . Ram . | . . . Kick . | . . . Crush . | . . . Escape Stasis . | . . . Rewire . | . . . Trap . | . . . Miscellaneous . | . . . Route ------- -11/Scrapyard -10/Materials (discovered 4 exits: *Mat x2 / [*Min x2]) -9/Materials (discovered 1 exit: [*Mat]) History --------- Turn | Location | Event 2 | -11/Scrapyard | Met Revision 17 28 | -11/Scrapyard | Discovered new exit (range 15) 54 | -11/Scrapyard | Entered Materials 132 | -10/Materials | Discovered new exit (range 16) 177 | -10/Materials | Discovered new exit (range 12) 225 | -10/Materials | Discovered new exit (range 6) 236 | -10/Materials | Discovered new exit (range 17) 308 | -10/Materials | Build established: Mutant 378 | -10/Materials | Lost 3 parts (1p1n1w) 478 | -10/Materials | Entered another Materials area 478 | -9/Materials | Evolved 2 slots: Propulsion x1, Utility x1 641 | -9/Materials | Lost 3 parts (1n2w) 811 | -9/Materials | Core integrity fell below 50% 862 | -9/Materials | Lost 4 parts (2n1u1w) 1135 | -9/Materials | Discovered new exit (range 13) 1163 | -9/Materials | Core integrity fell below 20% 1179 | -9/Materials | Destroyed self with Mini Grenade Launcher Last Messages --------------- 01160_ Wheel destroyed. 01163_ G-34 Mercenary destroyed. [Achievement: Hey, That's Mine!] 01163_ Ion Engine destroyed. 01164_ The unstable cave ceiling collapses. 01165_ G-34 Mercenary destroyed. 01165_ R-06 Scavenger destroyed. 01167_ M-13 Machinist destroyed. 01169_ L-31 Rogue destroyed. 01169_ Hrd. Light Armor Plating destroyed. 01169_ Destroyed Hrd. Light Armor Plating. 01169_ Terminal disabled. 01170_ The unstable cave ceiling collapses. 01171_ G-34 Mercenary destroyed. 01175_ The unstable cave ceiling collapses. 01175_ G-34 Mercenary destroyed. 01177_ Destroyed Heat Sink. 01177_ G-34 Mercenary destroyed. 01178_ Wheel destroyed. [Achievement: Achiever] Map ----- +----------------------------------------------------+ | | | | | ?????????????????????????????????????????????????? | | ?????????????????????????????????????????????????? | | ?????????????????????????????????????????????????? | | ?????????????????????????????????????????????????? | | ?????????????????????????????????????????????????? | | ???????## # #????????????????????????????? | | ??????? # ###########???????##########???????????? | | ??????? # #?????????????##### ???????????? | | ??????? # #?????????????# # """ """ ???????????? | | ??????? # #?????????????# < # """ """ ???????????? | | ??????? # #?????????????# #^""" """ ???????????? | | ??????? # #???????????### """ """ ???????????? | | ???????##+####????????# """ """ ???????????? | | ??????? #????????# ???????????? | | ??????? #????????# ???????????? | | ??????? """" #???????## ########???????????? | | ??????? """" #???????# = #???????????? | | ??????? """" ######### !! [ #???????????? | | ??????? / + ! #???????????? | | ???????###+##### " % ! "" #???????????? | | ??????? #???# T "" #???????????? | | ???????### #???# T" #???????????? | | ?????????# #???# "" #???????????? | | ?????????# #???# """ @ "" #???????????? | | ?????????# #???# """ % ! #???????????? | | ?????????# #???# """ % ###???????????? | | ?????????# #???# g ! #????????????? | | ???????###+###?##### #????????????? | | ??????? #?????## ### % #########????? | | ??????? #?########## #????? | | ??????? #?# # # """ #????? | | ??????? #?# """ # # """ #????? | | ??????? #?# """ # # # + """ #????? | | ??????? #?# """ # ### # #????? | | ??????? #?# + #?# % # !! #????? | | ??????? #?# """ # #?# # ! #????? | | ????????????????????????#####?# # #????? | | ??????????????????????????????# % # #????? | | ??????????????????????????????# ###########???? | | ??????????????????????????????# ^ ??? | | ??????????????????????????????# ^ ??? | | ??????????????????????????????# ^ ^ ??? | | ?????????????????############## ^""" """ #???? | | ?????????????????# ^ """ """??????? | | ?????????????????# """ ""???????? | | ?????????######### ???????? | | ???????# = ??????? | | ?? ############+##### ????? | +----------------------------------------------------+ Best States ------------- Heat Dissipation 42 Energy Generation 12 Energy Capacity 265 Matter Stores 300 Matter Capacity 300 Sight Range 16 Robot Scan Range 14 Terrain Scan Density 10 Armor Coverage 150 Evasion (%) 42 Targeting Accuracy 5 Recoil Reduction 1 Item Schematics ----------------- None Robot Schematics ------------------ None Fabricated ------------ Nothing Alien Tech Used ----------------- None Achievements -------------- Achiever Hey, That's Mine! Challenges ------------ None Game ------ Seed PulseElectronInitializer Manual? 0 Play Time 00:30:52 Cumulative 17.4 hours Start 2024.11.13 @ 21:04:07 End 2024.11.13 @ 21:37:39 Sessions 1 Manual Loads 0 Difficulty Rogue Special Mode None Game No. 19 Rogue 19 Adventurer 0 Explorer 0 Win Type - Total 1 Types 1/0/0/0/0/0/0/0/0 Lore% 8 Gallery% 24 Achievement% 25 Wizard Run 0 Options --------- Layout 0 ASCII 0 Keyboard 0 Movement Arrows Keybinds 0 Fullscreen 2 Font 18/SmallcapsGlow Map View 76x50 Zoom Use 0% Tactical HUD 1 Map Filters NONE Filters NONE Steam 1 RUN: 2d3f2bc0-cf62-4018-9b7a-59d45ae3266d